[Event "GAMMA Reykjavik Open 2019"]
[Site "Reykjavik"]
[Date "2019.04.13"]
[Round "6.19"]
[White "Mai, Alexander Oliver"]
[Black "Tang, Andrew"]
[Result "0-1"]
[ECO "C48"]
[WhiteElo "2003"]
[BlackElo "2501"]
[Annotator "ChessBase"]
[PlyCount "82"]
[EventDate "2019.04.04"]
[EventType "swiss"]
[EventCountry "ISL"]
[SourceTitle "playchess.com"]
[Source "ChessBase"]
[SourceQuality "1"]
[TimeControl "40/5400+30:1800+30"]

1. e4 {[%emt 0:00:00]} e5 {[%emt 0:00:00]} 2. Nf3 {[%emt 0:00:00]} Nc6 {[%emt 0:00:00]} 3. Nc3 {[%emt 0:00:00]} Nf6 {[%emt 0:00:00]} 4. Bb5 {[%emt 0:00:00]} Bc5 {[%emt 0:00:00]} 5. O-O {[%emt 0:00:02]} O-O {[%emt 0:01:16]} 6. Nxe5 {[%emt 0:01:26]} Nxe5 {[%emt 0:00:46]} 7. d4 {[%emt 0:00:09]} Bd6 {[%emt 0:00:08]} 8. f4 {[%emt 0:01:09]} Neg4 {[%emt 0:00:18]} 9. e5 {[%emt 0:01:38]} Bb4 {[%emt 0:02:17]} 10. f5 {[%emt 0:09:18]} Re8 {[%emt 0:08:08]} 11. exf6 {[%emt 0:02:24]} Nxf6 {[%emt 0:00:08]} 12. Bg5 {[%emt 0:01:52]} c6 {[%emt 0:00:49]} 13. Bd3 {[%emt 0:01:30]} h6 {[%emt 0:01:12]} 14. Bh4 {[%emt 0:01:59]} d5 {[%emt 0:03:10]} 15. Qf3 {[%emt 0:03:28]} Bd7 {[%emt 0:03:34]} 16. Ne2 {[%emt 0:05:25]} Be7 {[%emt 0:04:48]} 17. c3 {[%emt 0:07:57]} Nh7 {[%emt 0:03:29]} 18. Bxe7 {[%emt 0:04:21]} Qxe7 {[%emt 0:01:59]} 19. Ng3 {[%emt 0:03:53]} Nf6 {[%emt 0:05:46]} 20. h3 {[%emt 0:17:01]} Qe3+ {[%emt 0:04:38]} 21. Qxe3 {[%emt 0:06:26]} Rxe3 {[%emt 0:00:04]} 22. Rf3 {[%emt 0:00:33]} Rxf3 {[%emt 0:00:35]} 23. gxf3 {[%emt 0:00:01]} Ne8 {[%emt 0:03:05]} 24. Kf2 {[%emt 0:02:34]} Nd6 {[%emt 0:00:44]} 25. Ke3 {[%emt 0:08:46]} Kf8 {[%emt 0:04:21]} 26. Kf4 {[%emt 0:02:06]} Re8 {[%emt 0:02:27]} 27. Rg1 {[%emt 0:01:41]} Re7 {[%emt 0:04:17]} 28. h4 {[%emt 0:02:29]} b6 {[%emt 0:04:29]} 29. Rg2 {[%emt 0:06:56]} Re1 {[%emt 0:02:06]} 30. Re2 {[%emt 0:01:18]} Ra1 {[%emt 0:00:23]} 31. a3 {[%emt 0:01:02]} Rg1 {[%emt 0:04:35]} 32. Rd2 {[%emt 0:01:18]} f6 {[%emt 0:00:37]} 33. Re2 {[%emt 0:02:58]} c5 {[%emt 0:00:48]} 34. dxc5 {[%emt 0:04:10]} bxc5 {[%emt 0:00:02]} 35. Rd2 {[%emt 0:00:20]} Bc6 {[%emt 0:02:03]} 36. Be2 {[%emt 0:00:36]} Nf7 {[%emt 0:01:29]} 37. Nf1 {[%emt 0:00:34]} Ne5 {[%emt 0:01:18]} 38. Ne3 {[%emt 0:00:51]} g5+ {[%emt 0:00:50]} 39. fxg6 {[%emt 0:00:09]} Nxg6+ {[%emt 0:00:09]} 40. Kf5 {[%emt 0:00:00]} Kf7 {[%emt 0:00:00]} 41. Ng4 {[%emt 0:07:40]} Bd7# {[%emt 0:00:12]} 0-1

[Event "GAMMA Reykjavik Open 2019"]
[Site "Reykjavik"]
[Date "2019.04.13"]
[Round "6.20"]
[White "Loiseau, Quentin"]
[Black "Visser, Henk-Jan"]
[Result "1-0"]
[ECO "E11"]
[WhiteElo "2461"]
[BlackElo "2269"]
[Annotator "ChessBase"]
[PlyCount "133"]
[EventDate "2019.04.04"]
[EventType "swiss"]
[EventCountry "ISL"]
[SourceTitle "playchess.com"]
[Source "ChessBase"]
[SourceQuality "1"]
[TimeControl "40/5400+30:1800+30"]

1. d4 {[%emt 0:00:00]} Nf6 {[%emt 0:00:00]} 2. c4 {[%emt 0:00:00]} e6 {[%emt 0:00:12]} 3. Nf3 {[%emt 0:00:00]} Bb4+ {[%emt 0:00:50]} 4. Nbd2 {[%emt 0:00:06]} O-O {[%emt 0:00:39]} 5. a3 {[%emt 0:00:06]} Be7 {[%emt 0:00:20]} 6. e4 {[%emt 0:02:38]} d5 {[%emt 0:00:16]} 7. e5 {[%emt 0:00:08]} Nfd7 {[%emt 0:00:12]} 8. Bd3 {[%emt 0:00:06]} c5 {[%emt 0:00:37]} 9. Qc2 {[%emt 0:01:18]} h6 {[%emt 0:01:08]} 10. O-O {[%emt 0:00:24]} Nc6 {[%emt 0:01:49]} 11. Re1 {[%emt 0:01:16]} a5 {[%emt 0:00:55]} 12. Nb3 {[%emt 0:07:12]} b6 {[%emt 0:02:09]} 13. Bf4 {[%emt 0:07:13]} Bb7 {[%emt 0:01:28]} 14. Rad1 {[%emt 0:04:49]} a4 {[%emt 0:25:44]} 15. Nbd2 {[%emt 0:00:24]} Nxd4 {[%emt 0:01:38]} 16. Nxd4 {[%emt 0:00:04]} cxd4 {[%emt 0:00:08]} 17. Nf3 {[%emt 0:01:19]} Nc5 {[%emt 0:03:46]} 18. Nxd4 {[%emt 0:10:48]} Bg5 {[%emt 0:08:55]} 19. Bxg5 {[%emt 0:07:10]} Qxg5 {[%emt 0:00:36]} 20. Nf3 {[%emt 0:01:48]} Qh5 {[%emt 0:02:11]} 21. Be2 {[%emt 0:03:35]} Rfd8 {[%emt 0:21:35]} 22. Rd4 {[%emt 0:02:52]} dxc4 {[%emt 0:03:54]} 23. Rxc4 {[%emt 0:11:37]} Rac8 {[%emt 0:07:29]} 24. Qc3 {[%emt 0:04:47]} Qf5 {[%emt 0:03:59]} 25. h3 {[%emt 0:15:16]} Bd5 {[%emt 0:04:17]} 26. Nh4 {[%emt 0:04:04]} Qh7 {[%emt 0:01:42]} 27. Rg4 {[%emt 0:01:16]} h5 {[%emt 0:01:19]} 28. Rg5 {[%emt 0:02:45]} Ne4 {[%emt 0:00:31]} 29. Qxc8 {[%emt 0:00:04]} Rxc8 {[%emt 0:00:33]} 30. Rxh5 {[%emt 0:00:01]} Qxh5 {[%emt 0:04:48]} 31. Bxh5 {[%emt 0:00:01]} Rc2 {[%emt 0:00:46]} 32. Bf3 {[%emt 0:08:58]} Nd2 {[%emt 0:00:31]} 33. Bxd5 {[%emt 0:02:24]} exd5 {[%emt 0:00:01]} 34. Nf5 {[%emt 0:00:28]} Rxb2 {[%emt 0:01:11]} 35. Ne7+ {[%emt 0:00:04]} Kh7 {[%emt 0:00:23]} 36. Nxd5 {[%emt 0:00:50]} b5 {[%emt 0:00:25]} 37. f4 {[%emt 0:01:45]} Rb1 {[%emt 0:00:41]} 38. Kf2 {[%emt 0:00:13]} Rxe1 {[%emt 0:00:38]} 39. Kxe1 {[%emt 0:00:01]} Nb1 {[%emt 0:00:16]} 40. Ke2 {[%emt 0:00:00]} Nxa3 {[%emt 0:00:00]} 41. Kd3 {[%emt 0:04:13]} Nc4 {[%emt 0:13:13]} 42. Kc3 {[%emt 0:05:46]} a3 {[%emt 0:16:02]} 43. Kb3 {[%emt 0:00:12]} Kh6 {[%emt 0:00:46]} 44. Nc3 {[%emt 0:01:37]} g5 {[%emt 0:00:44]} 45. g3 {[%emt 0:03:08]} gxf4 {[%emt 0:01:46]} 46. gxf4 {[%emt 0:00:02]} Kg6 {[%emt 0:01:01]} 47. Nxb5 {[%emt 0:01:23]} Ne3 {[%emt 0:00:51]} 48. Nd6 {[%emt 0:00:49]} Nd5 {[%emt 0:00:30]} 49. f5+ {[%emt 0:00:23]} Kg7 {[%emt 0:00:09]} 50. Kxa3 {[%emt 0:00:23]} Nf4 {[%emt 0:00:32]} 51. h4 {[%emt 0:00:12]} Nd3 {[%emt 0:00:24]} 52. f6+ {[%emt 0:01:13]} Kg8 {[%emt 0:00:48]} 53. Nc4 {[%emt 0:00:26]} Kh7 {[%emt 0:00:28]} 54. Kb3 {[%emt 0:00:36]} Kg6 {[%emt 0:00:31]} 55. Kc3 {[%emt 0:00:01]} Nf4 {[%emt 0:00:34]} 56. Nd6 {[%emt 0:02:38]} Nh5 {[%emt 0:00:29]} 57. Kd4 {[%emt 0:00:33]} Nf4 {[%emt 0:00:20]} 58. Ke4 {[%emt 0:00:19]} Ne6 {[%emt 0:00:25]} 59. Kf3 {[%emt 0:03:32]} Nd8 {[%emt 0:00:46]} 60. Kg4 {[%emt 0:00:08]} Kh7 {[%emt 0:00:24]} 61. h5 {[%emt 0:00:37]} Kh6 {[%emt 0:00:35]} 62. Kh4 {[%emt 0:00:59]} Kh7 {[%emt 0:00:08]} 63. Kg5 {[%emt 0:00:18]} Ne6+ {[%emt 0:00:10]} 64. Kf5 {[%emt 0:00:04]} Nd8 {[%emt 0:00:05]} 65. Nxf7 {[%emt 0:02:37]} Nxf7 {[%emt 0:00:09]} 66. e6 {[%emt 0:00:01]} Nd6+ {[%emt 0:01:30]} 67. Ke5 {[%emt 0:00:06]} 1-0

[Event "GAMMA Reykjavik Open 2019"]
[Site "Reykjavik"]
[Date "2019.04.13"]
[Round "6.21"]
[White "Korley, Kassa"]
[Black "Jacobsen, Mikkel Manosri"]
[Result "1-0"]
[ECO "D37"]
[WhiteElo "2440"]
[BlackElo "2302"]
[Annotator "NA"]
[PlyCount "149"]
[EventDate "2019.04.04"]
[EventType "swiss"]
[EventCountry "ISL"]
[SourceTitle "playchess.com"]
[Source "ChessBase"]
[SourceQuality "1"]
[TimeControl "40/5400+30:1800+30"]

1. d4 {[%emt 0:00:00]} Nf6 {[%emt 0:00:00]} 2. c4 {[%emt 0:00:00]} e6 {[%emt 0:00:00]} 3. Nf3 {[%emt 0:00:00]} d5 {[%emt 0:00:00]} 4. Nc3 {[%emt 0:00:00]} Nbd7 {[%emt 0:00:00]} 5. Bf4 {[%emt 0:04:01]} a6 {[%emt 0:00:00]} 6. cxd5 {[%emt 0:00:45]} exd5 {[%emt 0:00:02]} 7. e3 {[%emt 0:00:24]} Be7 {[%emt 0:00:06]} 8. Bd3 {[%emt 0:00:34]} O-O {[%emt 0:00:07]} 9. O-O {[%emt 0:00:13]} c5 {[%emt 0:01:12]} 10. dxc5 {[%emt 0:00:36]} Nxc5 {[%emt 0:00:16]} 11. Nd4 {[%emt 0:04:52]} Qb6 {[%emt 0:03:23]} 12. Rb1 {[%emt 0:02:28]} Rd8 {[%emt 0:07:22]} 13. b4 {[%emt 0:15:21]} Nxd3 {[%emt 0:03:07]} 14. Qxd3 {[%emt 0:07:12]} Bd7 {[%emt 0:06:51]} 15. Be5 {[%emt 0:03:30]} Be8 {[%emt 0:01:10]} 16. Rfd1 {[%emt 0:15:14]} Bf8 {[%emt 0:05:49]} 17. Nf3 {[%emt 0:07:43]} Bb5 {[%emt 0:04:43]} 18. Nxb5 {[%emt 0:02:24]} axb5 {[%emt 0:00:08]} 19. Bxf6 {[%emt 0:05:46]} Qxf6 {[%emt 0:01:12]} 20. Qxb5 {[%emt 0:02:03]} Rxa2 {[%emt 0:00:15]} 21. Qxb7 {[%emt 0:00:14]} Qf5 {[%emt 0:03:21]} 22. Qb5 {[%emt 0:01:38]} Rc8 {[%emt 0:04:55]} 23. Qxd5 {[%emt 0:04:06]} Qxd5 {[%emt 0:00:19]} 24. Rxd5 {[%emt 0:00:02]} Rb2 {[%emt 0:03:32]} 25. Rdd1 {[%emt 0:01:21]} Rxb1 {[%emt 0:01:19]} 26. Rxb1 {[%emt 0:00:03]} Bxb4 {[%emt 0:00:05]} 27. g4 {[%emt 0:00:25]} Bd6 {[%emt 0:01:30]} 28. Kg2 {[%emt 0:02:49]} h6 {[%emt 0:01:39]} 29. h3 {[%emt 0:01:34]} g6 {[%emt 0:00:21]} 30. Rb2 {[%emt 0:00:13]} Rc5 {[%emt 0:01:30]} 31. Ra2 {[%emt 0:00:17]} h5 {[%emt 0:02:34]} 32. Nd2 {[%emt 0:03:29]} hxg4 {[%emt 0:00:22]} 33. hxg4 {[%emt 0:00:10]} Rc1 {[%emt 0:01:08]} 34. Ne4 {[%emt 0:00:08]} Be7 {[%emt 0:00:17]} 35. Ra7 {[%emt 0:03:45]} Kf8 {[%emt 0:00:12]} 36. Ra8+ {[%emt 0:04:53]} Kg7 {[%emt 0:02:11]} 37. Re8 {[%emt 0:00:09]} Rc7 {[%emt 0:00:42]} 38. f4 {[%emt 0:01:03]} f6 {[%emt 0:00:22]} 39. Kf3 {[%emt 0:00:45]} Kf7 {[%emt 0:01:15]} 40. Ra8 {[%emt 0:00:00]} Ke6 {[%emt 0:00:00]} 41. Ra6+ {[%emt 0:03:04]} Kf7 {[%emt 0:03:13]} 42. f5 {[%emt 0:00:13]} gxf5 {[%emt 0:01:21]} 43. gxf5 {[%emt 0:00:02]} Rc1 {[%emt 0:01:03]} 44. Ng3 {[%emt 0:01:49]} Rd1 {[%emt 0:03:16]} 45. Ra5 {[%emt 0:05:01]} Bd6 {[%emt 0:00:45]} 46. Ra7+ {[%emt 0:00:05]} Kf8 {[%emt 0:01:56]} 47. Nh5 {[%emt 0:02:01]} Be5 {[%emt 0:03:38]} 48. Ng7 {[%emt 0:00:10]} Rb1 {[%emt 0:00:49]} 49. Ne6+ {[%emt 0:00:05]} Ke8 {[%emt 0:00:30]} 50. Nc5 {[%emt 0:03:12]} Rb5 {[%emt 0:01:32]} 51. Ne4 {[%emt 0:01:19]} Rb4 {[%emt 0:04:49]} 52. Nf2 {[%emt 0:01:25]} Rc4 {[%emt 0:00:42]} 53. Ng4 {[%emt 0:00:15]} Bc3 {[%emt 0:00:53]} 54. Rg7 {[%emt 0:08:18]} Bb2 {[%emt 0:01:23]} 55. Rg8+ {[%emt 0:01:33]} Ke7 {[%emt 0:00:13]} 56. Rg7+ {[%emt 0:00:17]} Ke8 {[%emt 0:00:43]} 57. Rb7 {[%emt 0:00:11]} Bc3 {[%emt 0:01:39]} 58. Nh6 {[%emt 0:00:28]} Ra4 {[%emt 0:01:37]} 59. Nf7 {[%emt 0:00:18]} Kf8 {[%emt 0:00:40]} 60. Nh8 {[%emt 0:00:17]} Ke8 {[%emt 0:03:38]} 61. Ng6 {[%emt 0:00:02]} Ba1 {[%emt 0:01:10]} 62. Re7+ {[%emt 0:00:09]} Kd8 {[%emt 0:00:14]} 63. Re6 {[%emt 0:00:09]} Kd7 {[%emt 0:02:49]} 64. e4 {[%emt 0:01:07]} Ra3+ {[%emt 0:01:54]} 65. Kg4 {[%emt 0:00:45]} Rd3 {[%emt 0:00:39]} 66. Nf8+ {[%emt 0:00:40]} Kc7 {[%emt 0:00:39]} 67. Kh5 {[%emt 0:02:15]} Rd8 {[%emt 0:04:07]} 68. Nh7 {[%emt 0:00:34]} Rd6 {[%emt 0:00:16]} 69. Kg6 {[%emt 0:00:28]} Bc3 {[%emt 0:05:17]} 70. Nxf6 {[%emt 0:01:06]} Rxe6 {[%emt 0:00:11]} 71. fxe6 {[%emt 0:00:04]} Kd8 {[%emt 0:00:06]} 72. Kf7 {[%emt 0:00:43]} Bxf6 {[%emt 0:00:09]} 73. Kxf6 {[%emt 0:00:07]} Ke8 {[%emt 0:00:07]} 74. e7 {[%emt 0:00:04]} Kd7 {[%emt 0:00:09]} 75. Kf7 {[%emt 0:00:04]} 1-0

[Event "GAMMA Reykjavik Open 2019"]
[Site "Reykjavik"]
[Date "2019.04.13"]
[Round "6.26"]
[White "Mai, Aron Thor"]
[Black "Prithu Gupta"]
[Result "0-1"]
[ECO "C48"]
[WhiteElo "2067"]
[BlackElo "2478"]
[Annotator "ChessBase"]
[PlyCount "58"]
[EventDate "2019.04.04"]
[EventType "swiss"]
[EventCountry "ISL"]
[SourceTitle "playchess.com"]
[Source "ChessBase"]
[SourceQuality "1"]
[TimeControl "40/5400+30:1800+30"]

1. e4 {[%emt 0:00:00]} e5 {[%emt 0:00:00]} 2. Nf3 {[%emt 0:00:00]} Nc6 {[%emt 0:00:00]} 3. Nc3 {[%emt 0:00:02]} Nf6 {[%emt 0:00:00]} 4. Bb5 {[%emt 0:00:09]} Bd6 {[%emt 0:00:00]} 5. d3 {[%emt 0:00:37]} O-O {[%emt 0:04:38]} 6. a3 {[%emt 0:20:22]} Ne7 {[%emt 0:04:10]} 7. O-O {[%emt 0:18:27]} c6 {[%emt 0:00:05]} 8. Ba4 {[%emt 0:00:57]} Bc7 {[%emt 0:00:08]} 9. d4 {[%emt 0:01:13]} d5 {[%emt 0:06:12]} 10. dxe5 {[%emt 0:05:10]} Nxe4 {[%emt 0:00:15]} 11. Nxe4 {[%emt 0:06:11]} dxe4 {[%emt 0:00:06]} 12. Qxd8 {[%emt 0:00:44]} Rxd8 {[%emt 0:00:15]} 13. Ng5 {[%emt 0:00:19]} Bf5 {[%emt 0:13:36]} 14. Bb3 {[%emt 0:00:34]} Nd5 {[%emt 0:01:29]} 15. c4 {[%emt 0:00:58]} Nb6 {[%emt 0:05:31]} 16. Re1 {[%emt 0:04:25]} Bxe5 {[%emt 0:02:29]} 17. c5 {[%emt 0:03:51]} Nd5 {[%emt 0:00:07]} 18. Bc2 {[%emt 0:15:35]} Nf6 {[%emt 0:02:17]} 19. g4 {[%emt 0:02:05]} Nxg4 {[%emt 0:01:25]} 20. Bxe4 {[%emt 0:00:33]} Bxe4 {[%emt 0:01:03]} 21. Nxe4 {[%emt 0:00:24]} Bxh2+ {[%emt 0:01:41]} 22. Kg2 {[%emt 0:00:11]} Be5 {[%emt 0:00:29]} 23. f4 {[%emt 0:00:19]} Bd4 {[%emt 0:00:13]} 24. Kf3 {[%emt 0:02:21]} Nf6 {[%emt 0:00:39]} 25. Nxf6+ {[%emt 0:00:27]} Bxf6 {[%emt 0:00:05]} 26. Be3 {[%emt 0:00:40]} Rd3 {[%emt 0:00:23]} 27. Rad1 {[%emt 0:00:16]} Rad8 {[%emt 0:00:13]} 28. Rxd3 {[%emt 0:00:48]} Rxd3 {[%emt 0:00:06]} 29. Kg4 {[%emt 0:00:10]} g6 {[%emt 0:00:08]} 0-1

[Event "GAMMA Reykjavik Open 2019"]
[Site "Reykjavik"]
[Date "2019.04.13"]
[Round "6.29"]
[White "Suleymenov, Alisher"]
[Black "Mayrhuber, Nikola"]
[Result "1-0"]
[ECO "E05"]
[WhiteElo "2431"]
[BlackElo "1977"]
[Annotator "NA RC"]
[PlyCount "115"]
[EventDate "2019.04.04"]
[EventType "swiss"]
[EventCountry "ISL"]
[SourceTitle "playchess.com"]
[Source "ChessBase"]
[SourceQuality "1"]
[TimeControl "40/5400+30:1800+30"]

1. d4 {[%emt 0:00:34]} d5 {[%emt 0:00:00]} 2. c4 {[%emt 0:00:07]} e6 {[%emt 0:00:00]} 3. Nf3 {[%emt 0:00:14]} Nf6 {[%emt 0:00:00]} 4. g3 {[%emt 0:00:13]} Be7 {[%emt 0:00:03]} 5. Bg2 {[%emt 0:00:09]} O-O {[%emt 0:00:10]} 6. O-O {[%emt 0:00:05]} dxc4 {[%emt 0:00:14]} 7. Qc2 {[%emt 0:01:44]} a6 {[%emt 0:04:02]} 8. a4 {[%emt 0:00:13]} Bd7 {[%emt 0:00:21]} 9. Qxc4 {[%emt 0:13:36]} Bc6 {[%emt 0:00:34]} 10. Bg5 {[%emt 0:00:04]} Bd5 {[%emt 0:00:27]} 11. Qd3 {[%emt 0:11:08]} c5 {[%emt 0:02:19]} 12. dxc5 {[%emt 0:06:36]} Bxc5 {[%emt 0:05:22]} 13. Nc3 {[%emt 0:06:55]} Bc6 {[%emt 0:04:46]} 14. Qc4 {[%emt 0:05:43]} Be7 {[%emt 0:06:18]} 15. Rfd1 {[%emt 0:05:19]} Qa5 {[%emt 0:03:48]} 16. e4 {[%emt 0:06:16]} h6 {[%emt 0:02:07]} 17. Bf4 {[%emt 0:08:52]} Nbd7 {[%emt 0:07:34]} 18. Nd4 {[%emt 0:00:51]} Ne5 {[%emt 0:05:54]} 19. Bxe5 {[%emt 0:03:00]} Qxe5 {[%emt 0:00:38]} 20. Nxc6 {[%emt 0:00:13]} bxc6 {[%emt 0:00:16]} 21. Rd2 {[%emt 0:07:26]} Qc5 {[%emt 0:05:34]} 22. Qxc5 {[%emt 0:04:12]} Bxc5 {[%emt 0:00:06]} 23. Rc2 {[%emt 0:03:12]} Ba7 {[%emt 0:10:04]} 24. Na2 {[%emt 0:07:13]} Rab8 {[%emt 0:07:12]} 25. b4 {[%emt 0:00:28]} a5 {[%emt 0:02:18]} 26. bxa5 {[%emt 0:00:55]} Bd4 {[%emt 0:00:21]} 27. Re1 {[%emt 0:04:22]} c5 {[%emt 0:00:32]} 28. Bf1 {[%emt 0:00:17]} Ng4 {[%emt 0:05:55]} 29. Kg2 {[%emt 0:01:26]} Rb3 {[%emt 0:08:09]} 30. Bb5 {[%emt 0:02:07]} Ra3 {[%emt 0:02:29]} 31. Nc1 {[%emt 0:00:00]} Rc8 {[%emt 0:03:43]} 32. a6 {[%emt 0:00:33]} Rc7 {[%emt 0:00:43]} 33. h3 {[%emt 0:00:53]} Ne5 {[%emt 0:00:29]} 34. Rd1 {[%emt 0:00:39]} Ra7 {[%emt 0:04:00]} 35. Ne2 {[%emt 0:00:38]} Nf3 {[%emt 0:03:56]} 36. Nxd4 {[%emt 0:00:10]} cxd4 {[%emt 0:03:27]} 37. Be2 {[%emt 0:00:36]} d3 {[%emt 0:03:27]} 38. Rc8+ {[%emt 0:00:05]} Kh7 {[%emt 0:00:04]} 39. Bxf3 {[%emt 0:00:00]} Rxa6 {[%emt 0:00:00]} 40. Rd8 {[%emt 0:00:00]} R6xa4 {[%emt 0:00:00]} 41. R8xd3 {[%emt 0:00:24]} Rxd3 {[%emt 0:05:17]} 42. Rxd3 {[%emt 0:01:52]} g6 {[%emt 0:01:21]} 43. g4 {[%emt 0:05:36]} Kg7 {[%emt 0:03:17]} 44. Kg3 {[%emt 0:01:10]} Ra5 {[%emt 0:00:45]} 45. Bd1 {[%emt 0:00:35]} Rc5 {[%emt 0:00:52]} 46. f4 {[%emt 0:02:04]} Ra5 {[%emt 0:00:37]} 47. Rc3 {[%emt 0:02:38]} Ra1 {[%emt 0:01:21]} 48. Be2 {[%emt 0:01:06]} Ra5 {[%emt 0:00:15]} 49. Bd3 {[%emt 0:00:24]} Ra4 {[%emt 0:03:55]} 50. f5 {[%emt 0:01:56]} gxf5 {[%emt 0:00:26]} 51. exf5 {[%emt 0:00:05]} exf5 {[%emt 0:01:07]} 52. Bxf5 {[%emt 0:00:11]} Ra5 {[%emt 0:00:44]} 53. Kh4 {[%emt 0:00:10]} Ra6 {[%emt 0:03:24]} 54. Rc7 {[%emt 0:02:48]} Rb6 {[%emt 0:01:01]} 55. Bd3 {[%emt 0:00:21]} Rf6 {[%emt 0:01:31]} 56. Bc4 {[%emt 0:00:11]} Rf2 {[%emt 0:00:45]} 57. Kh5 {[%emt 0:00:26]} Rf3 {[%emt 0:00:51]} 58. Rxf7+ {[%emt 0:00:07]} 1-0

[Event "GAMMA Reykjavik Open 2019"]
[Site "Reykjavik"]
[Date "2019.04.13"]
[Round "6.30"]
[White "Valtysson, Thor"]
[Black "Borocz, Istvan"]
[Result "0-1"]
[ECO "A48"]
[WhiteElo "1915"]
[BlackElo "2350"]
[Annotator "NA"]
[PlyCount "74"]
[EventDate "2019.04.04"]
[EventType "swiss"]
[EventCountry "ISL"]
[SourceTitle "playchess.com"]
[Source "ChessBase"]
[SourceQuality "1"]
[TimeControl "40/5400+30:1800+30"]

1. d4 {[%emt 0:00:00]} Nf6 {[%emt 0:00:00]} 2. Nf3 {[%emt 0:00:00]} g6 {[%emt 0:00:00]} 3. Bf4 {[%emt 0:00:01]} Bg7 {[%emt 0:00:03]} 4. e3 {[%emt 0:00:11]} b6 {[%emt 0:02:01]} 5. Be2 {[%emt 0:00:18]} Bb7 {[%emt 0:00:15]} 6. O-O {[%emt 0:00:17]} O-O {[%emt 0:01:53]} 7. h3 {[%emt 0:03:17]} c5 {[%emt 0:00:31]} 8. c3 {[%emt 0:00:15]} d6 {[%emt 0:00:10]} 9. Nbd2 {[%emt 0:01:20]} Nbd7 {[%emt 0:00:08]} 10. a4 {[%emt 0:00:33]} a6 {[%emt 0:00:16]} 11. Bh2 {[%emt 0:00:20]} Ra7 {[%emt 0:01:06]} 12. Re1 {[%emt 0:02:48]} Qa8 {[%emt 0:03:44]} 13. Bf1 {[%emt 0:01:31]} Ne4 {[%emt 0:09:57]} 14. Nxe4 {[%emt 0:02:56]} Bxe4 {[%emt 0:00:27]} 15. Nd2 {[%emt 0:06:01]} Bc6 {[%emt 0:02:24]} 16. Qb1 {[%emt 0:05:24]} Rc8 {[%emt 0:09:51]} 17. Rc1 {[%emt 0:08:54]} Rac7 {[%emt 0:02:40]} 18. Qd3 {[%emt 0:09:11]} Bb7 {[%emt 0:02:30]} 19. Bg3 {[%emt 0:20:20]} Re8 {[%emt 0:11:19]} 20. Nc4 {[%emt 0:04:10]} Be4 {[%emt 0:11:23]} 21. Qe2 {[%emt 0:02:26]} Ra7 {[%emt 0:02:08]} 22. Rd1 {[%emt 0:01:27]} Rb8 {[%emt 0:05:35]} 23. f3 {[%emt 0:02:31]} Bd5 {[%emt 0:05:23]} 24. e4 {[%emt 0:04:40]} Bxc4 {[%emt 0:01:39]} 25. Qxc4 {[%emt 0:00:05]} b5 {[%emt 0:03:12]} 26. axb5 {[%emt 0:04:02]} axb5 {[%emt 0:01:02]} 27. Rxa7 {[%emt 0:00:17]} Qxa7 {[%emt 0:00:08]} 28. Qd3 {[%emt 0:01:24]} b4 {[%emt 0:04:56]} 29. Bf2 {[%emt 0:03:55]} bxc3 {[%emt 0:02:18]} 30. bxc3 {[%emt 0:00:18]} Qa2 {[%emt 0:04:43]} 31. Rd2 {[%emt 0:03:20]} Qa3 {[%emt 0:01:11]} 32. Rc2 {[%emt 0:05:08]} Rb1 {[%emt 0:02:26]} 33. g3 {[%emt 0:03:17]} cxd4 {[%emt 0:02:19]} 34. Bxd4 {[%emt 0:02:36]} Bxd4+ {[%emt 0:01:36]} 35. Qxd4 {[%emt 0:00:12]} Ne5 {[%emt 0:02:31]} 36. Rf2 {[%emt 0:01:10]} Rc1 {[%emt 0:01:45]} 37. f4 {[%emt 0:00:36]} Nc6 {[%emt 0:00:36]} 0-1

[Event "GAMMA Reykjavik Open 2019"]
[Site "Reykjavik"]
[Date "2019.04.13"]
[Round "6.31"]
[White "Stefansson, Vignir Vatnar"]
[Black "Baldvinsson, Loftur"]
[Result "1-0"]
[ECO "C57"]
[WhiteElo "2293"]
[BlackElo "1938"]
[Annotator "NA"]
[PlyCount "61"]
[EventDate "2019.04.04"]
[EventType "swiss"]
[EventCountry "ISL"]
[SourceTitle "playchess.com"]
[Source "ChessBase"]
[SourceQuality "1"]
[TimeControl "40/5400+30:1800+30"]

1. e4 {[%emt 0:00:00]} e5 {[%emt 0:00:00]} 2. Nf3 {[%emt 0:00:00]} Nc6 {[%emt 0:00:00]} 3. Bc4 {[%emt 0:00:00]} Nf6 {[%emt 0:00:00]} 4. Ng5 {[%emt 0:00:00]} d5 {[%emt 0:00:00]} 5. exd5 {[%emt 0:00:00]} Nd4 {[%emt 0:02:16]} 6. c3 {[%emt 0:00:07]} Nf5 {[%emt 0:00:28]} 7. Qe2 {[%emt 0:03:02]} Bd6 {[%emt 0:01:40]} 8. d3 {[%emt 0:01:15]} O-O {[%emt 0:01:42]} 9. O-O {[%emt 0:00:14]} Nh4 {[%emt 0:03:52]} 10. Ne4 {[%emt 0:01:49]} h6 {[%emt 0:00:20]} 11. Nbd2 {[%emt 0:02:24]} Nh7 {[%emt 0:01:26]} 12. Qh5 {[%emt 0:03:11]} Ng6 {[%emt 0:06:14]} 13. Nxd6 {[%emt 0:01:59]} cxd6 {[%emt 0:00:23]} 14. Ne4 {[%emt 0:00:38]} Ne7 $16 {[%emt 0:02:26]} 15. f4 {[%emt 0:02:15]} f5 {[%emt 0:04:03]} 16. Ng3 {[%emt 0:01:15]} Nf6 {[%emt 0:01:28]} 17. Qf3 {[%emt 0:01:28]} Kh8 {[%emt 0:03:54]} 18. Re1 {[%emt 0:04:00]} Qc7 {[%emt 0:02:30]} 19. Qe2 {[%emt 0:02:31]} Ng6 {[%emt 0:02:45]} 20. fxe5 {[%emt 0:01:47]} dxe5 {[%emt 0:00:43]} 21. Kh1 {[%emt 0:01:34]} Bd7 {[%emt 0:07:09]} 22. a4 {[%emt 0:02:06]} Rae8 {[%emt 0:01:26]} 23. b3 {[%emt 0:00:38]} Ng4 {[%emt 0:02:23]} 24. Ba3 {[%emt 0:02:40]} Nf4 {[%emt 0:07:01]} 25. Qf1 {[%emt 0:00:38]} a6 {[%emt 0:06:07]} 26. d4 {[%emt 0:05:53]} b5 {[%emt 0:02:17]} 27. dxe5 {[%emt 0:02:53]} bxc4 {[%emt 0:02:58]} 28. Qxf4 {[%emt 0:00:28]} cxb3 {[%emt 0:00:40]} 29. Bxf8 {[%emt 0:00:25]} Rxf8 {[%emt 0:00:38]} 30. h3 {[%emt 0:01:05]} g5 {[%emt 0:00:50]} 31. Qd4 {[%emt 0:00:08]} 1-0